lending/lending_fUSD_20251116
["ID","MTS","AMOUNT","RATE_DAILY","PERIOD"]
[394086629,1763257841479,-503.4381686,0.00017973,2]
[394086630,1763257841488,-349.88633371,0.00017973,2]
[394086631,1763257841498,-300.0,0.00017974,2]
[394086632,1763257841507,-300.0,0.00017975,2]
[394086633,1763257841518,-300.0,0.00017976,2]
[394086634,1763257841527,-300.0,0.00017976,2]
[394086635,1763257841537,-2746.6263069,0.00017977,2]
[394086636,1763257841547,-300.0,0.00017982,2]
[394086637,1763257841556,-502.97341376,0.00017982,2]
[394086638,1763257841565,-300.0,0.00017985,2]
[394086639,1763257841574,-300.0,0.00017988,2]
[394086640,1763257841584,-298.11,0.00017989,2]
[394086641,1763257841593,-300.0,0.00017992,2]
[394086642,1763257841602,-300.0,0.00017995,2]
[394086643,1763257841611,-154.5118767,0.00017996,2]
[394086644,1763257841621,-300.0,0.00017996,2]
[394086645,1763257841630,-300.0,0.00017999,2]
[394086646,1763257841640,-300.0,0.00017999,2]
[394086647,1763257841650,-507.99486951,0.00017999,2]
[394086648,1763257841660,-300.0,0.00017999,2]
[394086649,1763257841669,-300.0,0.00017999,2]
[394086650,1763257841679,-300.0,0.00017999,2]
[394086651,1763257841688,-198.62569978,0.00018,2]
[394086652,1763257841698,-125808.29801727,0.00018,2]
[394086653,1763257841707,-151.0,0.00018,2]
[394086654,1763257841717,-157.241708,0.00018,2]
[394086655,1763257841727,-151.0,0.00018,2]
[394086656,1763257841736,-151.0,0.00018,2]
[394086657,1763257841745,-151.0,0.00018,2]
[394086658,1763257841755,-158.907327,0.00018,2]
[394086659,1763257841768,-151.0,0.00018,2]
[394086660,1763257841777,-151.0,0.00018,2]
[394086661,1763257841787,-151.0,0.00018,2]
[394086662,1763257841796,-151.0,0.00018,2]
[394086663,1763257841806,-151.0,0.00018,2]
[394086664,1763257841815,-151.0,0.00018,2]
[394086665,1763257841825,-151.0,0.00018,2]
[394086666,1763257841835,-151.0,0.00018,2]
[394086667,1763257841844,-151.0,0.00018,2]
[394086668,1763257841853,-151.0,0.00018,2]
[394086669,1763257841863,-151.0,0.00018,2]
[394086670,1763257841871,-151.0,0.00018,2]
[394086671,1763257841880,-151.0,0.00018,2]
[394086672,1763257841890,-151.0,0.00018,2]
[394086673,1763257841899,-183.10432,0.00018,2]
[394086674,1763257841909,-161.347656,0.00018,2]
[394086675,1763257841918,-151.0,0.00018,2]
[394086676,1763257841928,-151.0,0.00018,2]
[394086677,1763257841936,-151.0,0.00018,2]
[394086678,1763257841946,-151.0,0.00018,2]
[394086679,1763257841955,-283.084194,0.00018,2]
[394086680,1763257841965,-151.0,0.00018,2]
[394086681,1763257841974,-151.0,0.00018,2]
[394086682,1763257841983,-151.0,0.00018,2]
[394086683,1763257841992,-151.0,0.00018,2]
[394086684,1763257842002,-151.0,0.00018,2]
[394086685,1763257842011,-151.0,0.00018,2]
[394086686,1763257842020,-151.0,0.00018,2]
[394086687,1763257842030,-156.189326,0.00018,2]
[394086688,1763257842039,-151.0,0.00018,2]
[394086689,1763257842049,-328.609049,0.00018,2]
[394086690,1763257842058,-328.609049,0.00018,2]
[394086691,1763257842067,-151.0,0.00018,2]
[394086692,1763257842076,-328.609049,0.00018,2]
[394086693,1763257842085,-328.609049,0.00018,2]
[394086694,1763257842095,-1886.034925,0.00018,2]
[394086695,1763257842104,-1886.034925,0.00018,2]
[394086696,1763257842114,-1886.034925,0.00018,2]
[394086697,1763257842124,-1886.034925,0.00018,2]
[394086698,1763257842133,-151.0,0.00018,2]
[394086699,1763257842143,-285.062401,0.00018,2]
[394086700,1763257842152,-151.0,0.00018,2]
[394086701,1763257842161,-285.062401,0.00018,2]
[394086702,1763257842171,-151.0,0.00018,2]
[394086703,1763257842180,-285.062401,0.00018,2]
[394086704,1763257842191,-285.062401,0.00018,2]
[394086705,1763257842201,-213.876581,0.00018,2]
[394086706,1763257842211,-253.049661,0.00018,2]
[394086707,1763257842221,-151.0,0.00018,2]
[394086708,1763257842230,-213.876581,0.00018,2]
[394086709,1763257842240,-182.168662,0.00018,2]
[394086710,1763257842250,-213.876581,0.00018,2]
[394086711,1763257842260,-213.876581,0.00018,2]
[394086712,1763257842269,-151.0,0.00018,2]
[394086713,1763257842279,-151.0,0.00018,2]
[394086714,1763257842287,-193.063553,0.00018,2]
[394086715,1763257842297,-151.0,0.00018,2]
[394086716,1763257842307,-151.0,0.00018,2]
[394086717,1763257842316,-156.407442,0.00018,2]
[394086718,1763257842326,-151.0,0.00018,2]
[394086719,1763257842470,-151.0,0.00018,2]
[394086720,1763257842480,-151.0,0.00018,2]
[394086721,1763257842490,-151.0,0.00018,2]
[394086722,1763257842499,-151.0,0.00018,2]
[394086723,1763257842508,-151.0,0.00018,2]
[394086724,1763257842518,-151.0,0.00018,2]
[394086725,1763257842528,-151.0,0.00018,2]
[394086726,1763257842538,-151.0,0.00018,2]
[394086727,1763257842547,-215.191817,0.00018,2]
[394086728,1763257842556,-151.0,0.00018,2]
[394086729,1763257842565,-151.0,0.00018,2]
[394086730,1763257842574,-151.0,0.00018,2]
[394086731,1763257842584,-151.0,0.00018,2]
[394086732,1763257842593,-151.0,0.00018,2]
[394086733,1763257842602,-151.0,0.00018,2]
[394086734,1763257842611,-151.0,0.00018,2]
[394086735,1763257842621,-237.202326,0.00018,2]
[394086736,1763257842631,-151.0,0.00018,2]
[394086737,1763257842640,-151.0,0.00018,2]
[394086738,1763257842650,-780.765947,0.00018,2]
[394086739,1763257842659,-151.0,0.00018,2]
[394086740,1763257842668,-151.0,0.00018,2]
[394086741,1763257842677,-780.765947,0.00018,2]
[394086742,1763257842686,-151.0,0.00018,2]
[394086743,1763257842697,-780.765947,0.00018,2]
[394086744,1763257842706,-151.0,0.00018,2]
[394086745,1763257842716,-151.0,0.00018,2]
[394086746,1763257842727,-780.765947,0.00018,2]
[394086747,1763257842736,-301.375516,0.00018,2]
[394086748,1763257842745,-151.0,0.00018,2]
[394086749,1763257842755,-224.439472,0.00018,2]
[394086750,1763257842766,-157.894586,0.00018,2]
[394086751,1763257842775,-151.0,0.00018,2]
[394086752,1763257842784,-151.0,0.00018,2]
[394086753,1763257842794,-151.0,0.00018,2]
[394086754,1763257842803,-80021.4927247,0.00018,2]
[394086755,1763257843198,-4405.82068585,0.00018,2]
[394086756,1763257843449,-5914.75258908,0.00017766,2]
[394086757,1763257843459,-302.176684,0.00017972,2]
[394086758,1763257843468,-217.707946,0.00017972,2]
[394086759,1763257843478,-225.412927,0.00017972,2]
[394086760,1763257843488,-317.380054,0.00017972,2]
[394086761,1763257843498,-151.0,0.00017972,2]
[394086762,1763257843507,-151.0,0.00017972,2]
[394086763,1763257843516,-270.187086,0.00017972,2]
[394086764,1763257843526,-302.176684,0.00017972,2]
[394086765,1763257843535,-225.412927,0.00017972,2]
[394086766,1763257843544,-221.517789,0.00017972,2]
[394086767,1763257843554,-317.380054,0.00017972,2]
[394086768,1763257843568,-1524684.92712596,0.00018,2]
[394086769,1763257843922,-151.0,0.00017972,2]
[394086770,1763257843932,-270.187086,0.00017972,2]
[394086771,1763257843942,-48.18181409,0.00017972,2]
[394086773,1763257845591,-500.0,0.00016037,2]
[394086774,1763257845601,-122.81754106,0.000179,2]
[394086775,1763257845959,-500.0,0.00016037,2]
[394086776,1763257845968,-5791.93504802,0.000179,2]
[394086777,1763257845978,-253.99486991,0.00017972,2]
[394086778,1763257845988,-225.412927,0.00017972,2]
[394086779,1763257845997,-317.380054,0.00017972,2]
[394086780,1763257846007,-221.517789,0.00017972,2]
[394086781,1763257846017,-284.325175,0.00017972,2]
[394086782,1763257846026,-270.187086,0.00017972,2]
[394086783,1763257846036,-221.517789,0.00017972,2]
[394086784,1763257846046,-317.380054,0.00017972,2]
[394086785,1763257846056,-270.187086,0.00017972,2]
[394086790,1763257846295,-221.517789,0.00017972,2]
[394086791,1763257846306,-151.0,0.00017972,2]
[394086792,1763257846316,-151.285516,0.00017972,2]
[394086793,1763257846325,-152.007192,0.00017972,2]
[394086794,1763257846335,-153.020676,0.00017972,2]
[394086795,1763257846344,-88953.28687449,0.00018,2]
[394087113,1763258240730,161.0,0.000301,120]
[394087115,1763258255620,161.0,0.000301,120]
[394087118,1763258402565,163.0,0.000301,120]
[394087143,1763258454921,300.0,0.0003013,120]
[394087165,1763258723557,700.0,0.0003,120]
[394087169,1763258754101,1400.0,0.0003,120]
[394087225,1763258798431,2000.0,0.0003013,120]
[394087231,1763258891617,1653.0,0.0003,120]
[394087235,1763258941423,150.0,0.00030135,120]
[394087236,1763259006738,185.0,0.0002759,120]
[394087237,1763259007738,185.0,0.0002897,120]
[394087239,1763259031879,-1527.66682287,0.00015737,2]
[394087240,1763259031895,-871.03682505,0.00015737,2]
[394087248,1763259037895,-3830.09414697,0.00015737,2]
[394087249,1763259037912,-267.48698409,0.00015737,2]
[394087250,1763259037928,-354.42,0.00015827,2]
[394087251,1763259037941,-354.42,0.00015827,2]
[394087252,1763259037958,-354.42,0.00015827,2]
[394087253,1763259037973,-354.42,0.00015827,2]
[394087254,1763259037988,-354.42,0.00015827,2]
[394087255,1763259038004,-300.0,0.00015835,2]
[394087256,1763259038020,-300.0,0.00015835,2]
[394087257,1763259038035,-1200.0,0.00015835,2]
[394087259,1763259038049,-500.0,0.00015836,2]
[394087262,1763259038067,-259.03160689,0.00015836,2]
[394087263,1763259038082,-500.0,0.00015836,2]
[394087264,1763259038096,-412.88055933,0.00015836,2]
[394087265,1763259038108,-231.58128147,0.00015836,2]
[394087266,1763259038126,-500.0,0.00015836,2]
[394087267,1763259038138,-504.72844365,0.00015836,2]
[394087268,1763259038149,-500.0,0.00015836,2]
[394087269,1763259038168,-500.0,0.00015836,2]
[394087270,1763259038181,-500.0,0.00015836,2]
[394087271,1763259038194,-500.0,0.00015836,2]
[394087272,1763259038211,-500.0,0.00015836,2]
[394087273,1763259038224,-500.0,0.00015836,2]
[394087274,1763259038237,-500.0,0.00015836,2]
[394087275,1763259038252,-500.0,0.00015836,2]
[394087276,1763259038265,-500.0,0.00015836,2]
[394087277,1763259038280,-500.0,0.00015836,2]
[394087278,1763259038294,-275.47532955,0.00015836,2]
[394087279,1763259038307,-500.0,0.00015836,2]
[394087280,1763259038320,-500.0,0.00015836,2]
[394087281,1763259038335,-500.0,0.00015836,2]
[394087282,1763259038349,-500.0,0.00015836,2]
[394087283,1763259038362,-500.0,0.00015836,2]
[394087284,1763259038376,-300.0,0.00015836,2]
[394087285,1763259038390,-5473.3645,0.00015837,2]
[394087286,1763259038405,-1000.0,0.00015837,2]
[394087287,1763259038419,-1000.0,0.00015837,2]
[394087288,1763259038432,-100300.16522344,0.00015837,2]
[394087289,1763259038448,-9463.38737334,0.00015837,2]
[394087290,1763259038464,-11420.91867797,0.00015837,2]
[394087291,1763259038532,-624395.71452525,0.00015837,2]
[394087292,1763259038546,-1387.8706,0.00015837,2]
[394087293,1763259038558,-306.41941127,0.00015873,2]
[394087294,1763259038572,-151.0,0.00015927,2]
[394087295,1763259038586,-151.0,0.00015927,2]
[394087296,1763259038600,-183.68555989,0.00015927,2]
[394087297,1763259038613,-200.0,0.00015927,2]
[394087298,1763259038627,-151.0,0.00015927,2]
[394087299,1763259038640,-151.0,0.00015927,2]
[394087300,1763259038654,-151.0,0.00015927,2]
[394087301,1763259038668,-151.0,0.00015927,2]
[394087302,1763259038681,-151.0,0.00015927,2]
[394087303,1763259038695,-151.0,0.00015927,2]
[394087304,1763259038709,-151.0,0.00015927,2]
[394087305,1763259038723,-151.0,0.00015927,2]
[394087306,1763259038737,-151.0,0.00015927,2]
[394087307,1763259038750,-151.0,0.00015927,2]
[394087308,1763259038764,-200.0,0.00015927,2]
[394087309,1763259038778,-151.0,0.00015927,2]
[394087310,1763259038790,-200.0,0.00015927,2]
[394087311,1763259038803,-500.41434818,0.00015973,2]
[394087312,1763259038817,-500.0,0.00016037,2]
[394087313,1763259038830,-268.17886425,0.00016037,2]
[394087314,1763259038845,-507.99486951,0.00016037,2]
[394087315,1763259038858,-500.0,0.00016037,2]
[394087316,1763259038871,-242.26084254,0.00016037,2]
[394087317,1763259038884,-500.0,0.00016037,2]
[394087318,1763259038898,-500.0,0.00016037,2]
[394087319,1763259038911,-150.0,0.000162,2]
[394087320,1763259038925,-150.0,0.000162,2]
[394087321,1763259038940,-3511.21442267,0.00016419,2]
[394087322,1763259038953,-309.07878211,0.00016475,2]
[394087323,1763259038967,-200.0,0.00016475,2]
[394087324,1763259038980,-150.0,0.000165,2]
[394087325,1763259038994,-3576.16,0.00016593,2]
[394087326,1763259039007,-150.0,0.00016593,2]
[394087327,1763259039021,-500.0,0.00016658,2]
[394087328,1763259039035,-192.45,0.00016712,2]
[394087329,1763259039048,-6228.79779485,0.00016725,2]
[394087330,1763259039061,-250.0,0.00016781,2]
[394087331,1763259039075,-150.0,0.000168,2]
[394087332,1763259039087,-150.0,0.000168,2]
[394087333,1763259039100,-500.0,0.00016822,2]
[394087334,1763259039115,-338.0,0.00016959,2]
[394087335,1763259039128,-290.99886165,0.00016987,2]
[394087336,1763259039143,-250.0,0.00016987,2]
[394087337,1763259039156,-250.0,0.00016987,2]
[394087338,1763259039167,-250.0,0.00016987,2]
[394087339,1763259039176,-250.0,0.00016987,2]
[394087340,1763259039186,-250.0,0.00016987,2]
[394087341,1763259039197,-250.0,0.00016987,2]
[394087342,1763259039209,-151.0,0.00016987,2]
[394087345,1763259039494,-250.0,0.00016987,2]
[394087350,1763259039536,-250.0,0.00016987,2]
[394087352,1763259039549,-250.0,0.00016987,2]
[394087354,1763259039558,-250.0,0.00016987,2]
[394087356,1763259039567,-250.0,0.00016987,2]
[394087358,1763259039577,-250.0,0.00016987,2]
[394087359,1763259039587,-250.0,0.00016987,2]
[394087360,1763259039597,-250.0,0.00016987,2]
[394087361,1763259039606,-250.0,0.00016987,2]
[394087362,1763259039615,-250.0,0.00016987,2]
[394087363,1763259039625,-250.0,0.00016987,2]
[394087364,1763259039634,-250.0,0.00016987,2]
[394087365,1763259039643,-250.0,0.00016987,2]
[394087366,1763259039652,-250.0,0.00016987,2]
[394087367,1763259039662,-151.0,0.00016987,2]
[394087368,1763259039672,-250.0,0.00016987,2]
[394087369,1763259039681,-151.0,0.00016987,2]
[394087370,1763259039691,-250.0,0.00016987,2]
[394087371,1763259039700,-151.0,0.00016987,2]
[394087372,1763259039709,-151.0,0.00016987,2]
[394087373,1763259039718,-151.0,0.00016987,2]
[394087374,1763259039728,-151.0,0.00016987,2]
[394087375,1763259039737,-151.0,0.00016987,2]
[394087376,1763259039746,-151.0,0.00016987,2]
[394087377,1763259039756,-151.0,0.00016987,2]
[394087378,1763259039765,-151.0,0.00016987,2]
[394087379,1763259039775,-151.0,0.00016987,2]
[394087380,1763259039784,-152.54673476,0.00016987,2]
[394087381,1763259039794,-151.0,0.00016987,2]
[394087382,1763259039804,-574.12855637,0.00016987,2]
[394087383,1763259039814,-250.0,0.00016987,2]
[394087384,1763259039823,-277.35679052,0.00016987,2]
[394087385,1763259039833,-250.0,0.00016987,2]
[394087386,1763259039842,-250.0,0.00016987,2]
[394087387,1763259039851,-250.0,0.00016987,2]
[394087388,1763259039860,-250.0,0.00016987,2]
[394087389,1763259039870,-250.0,0.00016987,2]
[394087390,1763259039878,-250.0,0.00016987,2]
[394087391,1763259039887,-250.0,0.00016987,2]
[394087392,1763259039896,-250.0,0.00016987,2]
[394087393,1763259039906,-250.0,0.00016987,2]
[394087394,1763259039915,-250.0,0.00016987,2]
[394087395,1763259039927,-322.6107,0.00016987,2]
[394087396,1763259039937,-151.0,0.00016987,2]
[394087397,1763259039947,-250.0,0.00016987,2]
[394087398,1763259039956,-250.0,0.00016987,2]
[394087399,1763259039966,-250.0,0.00016987,2]
[394087400,1763259039975,-250.0,0.00016987,2]
[394087401,1763259039984,-250.0,0.00016987,2]
[394087402,1763259039993,-250.0,0.00016987,2]
[394087403,1763259040003,-250.0,0.00016987,2]
[394087404,1763259040013,-250.0,0.00016987,2]
[394087405,1763259040022,-250.0,0.00016987,2]
[394087406,1763259040031,-250.0,0.00016987,2]
[394087407,1763259040040,-250.0,0.00016987,2]
[394087408,1763259040049,-250.0,0.00017,2]
[394087409,1763259040059,-500.0,0.00017096,2]
[394087410,1763259040068,-150.0,0.000171,2]
[394087411,1763259040078,-517.24,0.00017124,2]
[394087412,1763259040087,-1156.06020455,0.00017196,2]
[394087413,1763259040096,-1000.0,0.000172,2]
[394087414,1763259040106,-1000.0,0.000172,2]
[394087415,1763259040115,-1000.0,0.000172,2]
[394087416,1763259040125,-1000.0,0.000173,2]
[394087417,1763259040135,-420.0,0.00017316,2]
[394087418,1763259040144,-150.0,0.000174,2]
[394087419,1763259040154,-150.0,0.000174,2]
[394087420,1763259040163,-1680.0,0.00017403,2]
[394087421,1763259040175,-2392.0,0.00017418,2]
[394087422,1763259040184,-195.0,0.00017419,2]
[394087423,1763259040194,-301.22670242,0.0001742,2]
[394087424,1763259040207,-195.0,0.0001742,2]
[394087425,1763259040217,-300.0,0.0001742,2]
[394087426,1763259040226,-300.0,0.0001742,2]
[394087427,1763259040235,-300.0,0.0001742,2]
[394087428,1763259040246,-250.0,0.0001742,2]
[394087430,1763259040255,-195.0,0.0001742,2]
[394087432,1763259040265,-300.0,0.0001742,2]
[394087434,1763259040274,-168.0,0.00017468,2]
[394087436,1763259040284,-2392.0,0.00017482,2]
[394087438,1763259040293,-272.12265315,0.00017535,2]
[394087440,1763259040302,-595.37131296,0.00017535,2]
[394087442,1763259040312,-151.0,0.00017535,2]
[394087444,1763259040322,-2392.0,0.00017542,2]
[394087446,1763259040332,-150.0,0.000177,2]
[394087448,1763259040341,-6228.79779485,0.00017713,2]
[394087450,1763259040351,-222.22926538,0.00017714,2]
[394087452,1763259040360,-504.0,0.00017781,2]
[394087454,1763259040370,-2000.0,0.000178,2]
[394087456,1763259040380,-162.03,0.000178,2]
[394087458,1763259040389,-1000.0,0.000178,2]
[394087460,1763259040398,-500.0,0.00017898,2]
[394087462,1763259040408,-500.0,0.00017898,2]
[394087463,1763259040417,-500.0,0.00017898,2]
[394087464,1763259040427,-500.0,0.00017898,2]
[394087465,1763259040437,-207.65327049,0.00017898,2]
[394087466,1763259040447,-518.20263194,0.00017898,2]
[394087467,1763259040456,-1780.30857392,0.00017898,2]
[394087468,1763259040465,-1156.06020455,0.00017898,2]
[394087469,1763259040475,-178.1834865,0.000179,2]
[394087470,1763259040484,-161.0,0.000179,2]
[394087471,1763259040493,-161.0,0.000179,2]
[394087472,1763259040503,-161.0,0.000179,2]
[394087473,1763259040512,-161.0,0.000179,3]
[394087474,1763259040522,-161.0,0.000179,3]
[394087475,1763259040531,-9857.3831,0.000179,2]
[394087476,1763259040541,-716.33645255,0.000179,2]
[394087477,1763259040552,-1324.764,0.00017913,2]
[394087478,1763259040561,-2392.0,0.00017936,2]
[394087479,1763259040570,-18842.0,0.00017973,2]
[394087480,1763259040580,-523.0,0.00017973,2]
[394087481,1763259040590,-508.2246355,0.00017973,2]
[394087482,1763259040599,-501.84826476,0.00017973,2]
[394087483,1763259040608,-500.99618926,0.00017973,2]
[394087484,1763259040618,-502.07907442,0.00017973,2]
[394087485,1763259040628,-474.82122033,0.00017973,2]
[394087486,1763259040638,-502.03131805,0.00017973,2]
[394087487,1763259040647,-500.0,0.00017973,2]
[394087488,1763259040656,-502.10718948,0.00017973,2]
[394087489,1763259040665,-337.06854993,0.00017973,2]
[394087490,1763259040676,-473.89091281,0.00017973,2]
[394087491,1763259040686,-500.0,0.00017973,2]
[394087492,1763259040695,-501.68730018,0.00017973,2]
[394087493,1763259040705,-500.91239036,0.00017973,2]
[394087494,1763259040714,-500.0,0.00017973,2]
[394087495,1763259040723,-169.37976718,0.00017973,2]
[394087496,1763259040733,-349.88633371,0.00017973,2]
[394087497,1763259040742,-503.4381686,0.00017973,2]
[394087498,1763259040751,-502.23891363,0.00017973,2]
[394087499,1763259040761,-500.0,0.00017973,2]
[394087500,1763259040770,-5786.0,0.00017981,2]
[394087501,1763259040779,-500.0,0.00017982,2]
[394087502,1763259040789,-213.41473698,0.00017988,2]
[394087503,1763259040798,-11534.365385,0.00017998,2]
[394087504,1763259040808,-914270.8961769,0.00017998,2]
[394087505,1763259040817,-3324.8662235,0.00017998,2]
[394087506,1763259040827,-1073.1863379,0.00017998,2]
[394087507,1763259040837,-21606.3136593,0.00017998,2]
[394087508,1763259040846,-529.9447673,0.00017998,2]
[394087509,1763259040855,-30121.846707,0.00017998,2]
[394087510,1763259040864,-2975.2973613,0.00017998,2]
[394087511,1763259040873,-519.59711765,0.00017999,2]
[394087512,1763259040883,-150.0,0.00018,2]
[394087513,1763259040892,-150.73376493,0.00018,2]
[394087514,1763259040901,-198.62569978,0.00018,2]
[394087515,1763259040911,-351865.81151617,0.00018,2]
[394087516,1763259040993,-1717.39044472,0.00018,2]
[394087517,1763259041004,-1084.08010303,0.00018,2]
[394087518,1763259041015,-1179.64500004,0.00018,2]
[394087519,1763259041026,-1355658.90672446,0.00018,2]
[394087520,1763259041036,-200.0,0.00018,2]
[394087521,1763259041045,-151.0,0.00018,2]
[394087522,1763259041054,-183.398054,0.00018,2]
[394087523,1763259041063,-151.0,0.00018,2]
[394087524,1763259041073,-151.0,0.00018,2]
[394087525,1763259041082,-151.0,0.00018,2]
[394087526,1763259041091,-161.211889,0.00018,2]
[394087527,1763259041101,-158.371195,0.00018,2]
[394087528,1763259041110,-151.0,0.00018,2]
[394087529,1763259041119,-153.714524,0.00018,2]
[394087530,1763259041129,-151.0,0.00018,2]
[394087531,1763259041138,-155.471458,0.00018,2]
[394087532,1763259041148,-152.793394,0.00018,2]
[394087533,1763259041157,-213.900215,0.00018,2]
[394087534,1763259041167,-213.900215,0.00018,2]
[394087535,1763259041178,-213.900215,0.00018,2]
[394087536,1763259041188,-151.0,0.00018,2]
[394087537,1763259041199,-213.900215,0.00018,2]
[394087538,1763259041211,-151.0,0.00018,2]
[394087539,1763259041220,-157.45419,0.00018,2]
[394087540,1763259041229,-151.0,0.00018,2]
[394087541,1763259041239,-154.259977,0.00018,2]
[394087542,1763259041249,-151.0,0.00018,2]
[394087543,1763259041277,-151.0,0.00018,2]
[394087544,1763259041286,-151.0,0.00018,2]
[394087545,1763259041296,-151.0,0.00018,2]
[394087546,1763259041305,-151.0,0.00018,2]
[394087547,1763259041315,-151.0,0.00018,2]
[394087548,1763259041324,-151.0,0.00018,2]
[394087549,1763259041333,-151.0,0.00018,2]
[394087550,1763259041343,-151.0,0.00018,2]
[394087551,1763259041353,-151.0,0.00018,2]
[394087552,1763259041363,-151.0,0.00018,2]
[394087553,1763259041372,-151.0,0.00018,2]
[394087554,1763259041382,-165.666462,0.00018,2]
[394087555,1763259041392,-151.0,0.00018,2]
[394087556,1763259041402,-151.0,0.00018,2]
[394087557,1763259041411,-151.0,0.00018,2]
[394087558,1763259041421,-156.089534,0.00018,2]
[394087559,1763259041432,-151.0,0.00018,2]
[394087560,1763259041441,-151.811139,0.00018,2]
[394087561,1763259041451,-151.0,0.00018,2]
[394087562,1763259041460,-151.0,0.00018,2]
[394087563,1763259041470,-151.0,0.00018,2]
[394087564,1763259041479,-151.0,0.00018,2]
[394087565,1763259041489,-151.0,0.00018,2]
[394087566,1763259041498,-151.0,0.00018,2]
[394087567,1763259041508,-249.696658,0.00018,2]
[394087568,1763259041517,-249.696658,0.00018,2]
[394087569,1763259041527,-249.696658,0.00018,2]
[394087570,1763259041536,-249.696658,0.00018,2]
[394087571,1763259041545,-151.0,0.00018,2]
[394087572,1763259041555,-153.877264,0.00018,2]
[394087573,1763259041564,-151.0,0.00018,2]
[394087574,1763259041574,-151.0,0.00018,2]
[394087575,1763259041583,-151.0,0.00018,2]
[394087576,1763259041593,-151.0,0.00018,2]
[394087577,1763259041602,-165.401043,0.00018,2]
[394087578,1763259041611,-151.0,0.00018,2]
[394087579,1763259041621,-160.155288,0.00018,2]
[394087580,1763259041631,-151.0,0.00018,2]
[394087581,1763259041640,-160.155288,0.00018,2]
[394087582,1763259041650,-151.0,0.00018,2]
[394087583,1763259041659,-160.155288,0.00018,2]
[394087584,1763259041669,-160.155288,0.00018,2]
[394087585,1763259041678,-151.0,0.00018,2]
[394087586,1763259041687,-151.0,0.00018,2]
[394087587,1763259041697,-151.0,0.00018,2]
[394087588,1763259041707,-1886.604869,0.00018,2]
[394087589,1763259041717,-1886.604869,0.00018,2]
[394087590,1763259041726,-1886.604869,0.00018,2]
[394087591,1763259041735,-151.0,0.00018,2]
[394087592,1763259041745,-1886.604869,0.00018,2]
[394087593,1763259041754,-165.104213,0.00018,2]
[394087594,1763259041763,-329.406227,0.00018,2]
[394087595,1763259041772,-329.406227,0.00018,2]
[394087596,1763259041782,-329.406227,0.00018,2]
[394087597,1763259041791,-329.406227,0.00018,2]
[394087598,1763259041804,-151.0,0.00018,2]
[394087599,1763259041813,-151.0,0.00018,2]
[394087600,1763259041822,-151.0,0.00018,2]
[394087601,1763259041831,-285.062402,0.00018,2]
[394087602,1763259041840,-151.0,0.00018,2]